fUSD/lending_fUSD_20240422
["ID","MTS","AMOUNT","RATE_DAILY","PERIOD"]
[323184041,1713789040759,-272.61409271,0.00013378,2]
[323184042,1713789040769,-555.55555,0.00013378,2]
[323184043,1713789040778,-555.55556,0.00013378,2]
[323184044,1713789040789,-555.55556,0.00013378,2]
[323184045,1713789040798,-1400.0,0.000134,4]
[323184046,1713789040808,-360.0,0.00013411,2]
[323184047,1713789040820,-1000.0,0.00013429,2]
[323184048,1713789040829,-500.0,0.00013429,2]
[323184049,1713789040838,-504.39023848,0.00013481,2]
[323184050,1713789040847,-600.0,0.000135,2]
[323184051,1713789040856,-200.0,0.000135,4]
[323184052,1713789040865,-52898.2132,0.0001351,2]
[323184053,1713789040874,-504.39023844,0.00013541,2]
[323184054,1713789040883,-1000.0,0.00013581,2]
[323184055,1713789040892,-1000.0,0.00013586,2]
[323184056,1713789040900,-500.0,0.00013586,2]
[323184057,1713789040910,-157.3596534,0.00013595,2]
[323184058,1713789040919,-3769.87849534,0.00013598,2]
[323184059,1713789040928,-194.07964525,0.00013598,2]
[323184060,1713789040936,-10000.0,0.00013598,2]
[323184061,1713789040946,-200.0,0.000136,4]
[323184062,1713789040955,-504.39023844,0.00013601,2]
[323184063,1713789040965,-1141.0,0.0001361,2]
[323184064,1713789040974,-443.0,0.0001361,2]
[323184065,1713789040987,-3769.87849525,0.00013625,2]
[323184066,1713789041000,-3769.87849525,0.00013653,2]
[323184067,1713789041009,-504.39023844,0.00013661,2]
[323184068,1713789041021,-3769.87849525,0.0001368,2]
[323184069,1713789041030,-17804.21150934,0.00013681,2]
[323184085,1713789043341,-1534.9424998,0.00013163,2]
[323184086,1713789043361,-500.0,0.00013163,2]
[323184091,1713789043429,-214.0,0.00013083,2]
[323184092,1713789043439,-626.64392545,0.00013163,2]
[323184095,1713789043450,-1552.12006236,0.00013163,2]
[323184098,1713789043469,-5786.29351239,0.00013163,2]
[323184100,1713789043478,-7373.70648761,0.00013681,2]
[323184101,1713789043507,-8539.81498359,0.00013681,2]
[323184102,1713789043515,-20078.70901641,0.00013686,2]
[323184103,1713789043526,-428.03097649,0.00013686,2]
[323184104,1713789043544,-71.6803168,0.00013686,2]
[323184105,1713789043553,-969.7281193,0.00013686,2]
[323184124,1713789046257,-419.06,0.00012478,2]
[323184125,1713789046266,-1341.67554116,0.00013163,2]
[323184126,1713789046285,-467.14355168,0.00013163,2]
[323184127,1713789046296,-4100.47858332,0.00013163,2]
[323184128,1713789046305,-2791.8163148,0.00013686,2]
[323184129,1713789046315,-150.0,0.0001369,2]
[323184130,1713789046325,-155.0,0.00013695,2]
[323184131,1713789046334,-369.99397605,0.00013695,2]
[323184132,1713789046343,-325.67432968,0.00013695,2]
[323184133,1713789046352,-155.12141183,0.00013695,2]
[323184134,1713789046362,-267.35241553,0.00013695,2]
[323184135,1713789046370,-347.34840719,0.00013695,2]
[323184136,1713789046379,-170.3145515,0.00013695,2]
[323184137,1713789046389,-404.71022701,0.00013695,2]
[323184138,1713789046398,-786.89515518,0.00013695,2]
[323184139,1713789046408,-207.76281559,0.00013695,2]
[323184140,1713789046418,-155.0,0.00013695,2]
[323184141,1713789046428,-164.47454881,0.00013695,2]
[323184143,1713789046437,-166.84316462,0.00013695,2]
[323184145,1713789046447,-155.0,0.00013695,2]
[323184147,1713789046457,-338.34095941,0.00013695,2]
[323184149,1713789046466,-155.0,0.00013695,2]
[323184151,1713789046475,-155.0,0.00013695,2]
[323184153,1713789046485,-155.0,0.00013695,2]
[323184154,1713789046495,-255.3668917,0.00013695,2]
[323184155,1713789046505,-305.08497536,0.00013695,2]
[323184156,1713789046514,-192.70495298,0.00013695,2]
[323184157,1713789046523,-343.26553462,0.00013695,2]
[323184158,1713789046533,-155.0,0.00013695,2]
[323184159,1713789046543,-155.22088071,0.00013695,2]
[323184160,1713789046552,-444.3911085,0.00013695,2]
[323184161,1713789046562,-683.94482434,0.00013695,2]
[323184162,1713789046571,-1240.38328004,0.00013695,2]
[323184163,1713789046581,-419.32847632,0.00013695,2]
[323184164,1713789046591,-805.83583203,0.00013695,2]
[323184165,1713789046600,-217.45154391,0.00013695,2]
[323184166,1713789046610,-248.485701,0.00013695,2]
[323184167,1713789046620,-207.70034464,0.00013695,2]
[323184168,1713789046630,-313.38784436,0.00013695,2]
[323184169,1713789046640,-157.45318495,0.00013695,2]
[323184170,1713789046649,-150.0,0.00013695,2]
[323184171,1713789046658,-177.8515635,0.00013695,2]
[323184172,1713789046667,-155.0,0.00013695,2]
[323184173,1713789046677,-5544.53670484,0.00013696,2]
[323184174,1713789046687,-1243.211958,0.00013696,2]
[323184175,1713789046697,-1364.81284018,0.00013696,3]
[323184176,1713789046707,-6422.1306065,0.00013697,2]
[323184177,1713789046742,-11612.9998,0.00013697,2]
[323184178,1713789046907,-119629.19379292,0.00013697,2]
[323184179,1713789046921,-4054.38111993,0.00013697,2]
[323184180,1713789046934,-255.41169921,0.00013697,2]
[323184187,1713789562590,150.0,0.00010729,2]
[323184188,1713789562617,755.49,0.00010729,2]
[323184189,1713790062400,860.21,0.00010748,2]
[323184190,1713790126035,5000.0,0.00025999,90]
[323184192,1713790147847,3000.0,0.00025999,90]
[323184210,1713790232204,-156.8,0.00011799,2]
[323184211,1713790232215,-216.0,0.00012604,2]
[323184212,1713790232225,-784.0,0.00012654,2]
[323184213,1713790232235,-150.0,0.00012658,2]
[323184214,1713790232245,-6610.92,0.00012661,2]
[323184219,1713790233870,-17289.08,0.00012661,2]
[323184220,1713790233895,-250.0,0.00012663,2]
[323184221,1713790233920,-4081.29,0.00012663,2]
[323184222,1713790233947,-243.2,0.00012663,2]
[323184223,1713790233972,-3103.41,0.00012663,2]
[323184224,1713790233995,-777.9859,0.000127,2]
[323184225,1713790234020,-282.27,0.000127,2]
[323184226,1713790234044,-220.64,0.000127,2]
[323184227,1713790234067,-18066.53707668,0.00013,2]
[323184241,1713790238033,-500.0,0.00013012,2]
[323184243,1713790238094,-360.21,0.00013012,2]
[323184244,1713790238105,-150.99,0.00013273,2]
[323184245,1713790238115,-1047.9,0.00013273,2]
[323184246,1713790238126,-8048.22,0.00013273,2]
[323184247,1713790238135,-156.8,0.00013273,2]
[323184248,1713790238146,-461.0,0.00013342,2]
[323184249,1713790238157,-1393.0,0.00013342,2]
[323184250,1713790238168,-969.0,0.00013342,2]
[323184251,1713790238177,-2295.0,0.00013342,2]
[323184252,1713790238187,-1228.0,0.00013342,2]
[323184253,1713790238198,-541.0,0.00013342,2]
[323184254,1713790238208,-358.549,0.00013342,2]
[323184255,1713790238218,-481.187,0.00013342,2]
[323184256,1713790238228,-1474.0,0.00013342,2]
[323184257,1713790238239,-1494.578,0.00013342,2]
[323184258,1713790238249,-399.0,0.00013342,2]
[323184259,1713790238258,-214.0,0.00013342,2]
[323184260,1713790238269,-1640.0,0.00013342,2]
[323184261,1713790238279,-443.0,0.00013342,2]
[323184262,1713790238289,-1139.0,0.00013342,2]
[323184263,1713790238298,-195.0,0.00013342,2]
[323184264,1713790238307,-4878.814,0.00013342,2]
[323184265,1713790238318,-2169.72,0.00013342,2]
[323184266,1713790238330,-598.499,0.00013342,2]
[323184267,1713790238341,-420.58521,0.0001356,2]
[323184268,1713790238352,-1000.0,0.00013587,2]
[323184269,1713790238363,-500.0,0.00013587,2]
[323184270,1713790238375,-1844.792,0.00013597,2]
[323184271,1713790238386,-535.22778949,0.00013597,2]
[323184272,1713790238395,-2513.25233024,0.00013598,2]
[323184273,1713790238404,-179.2668324,0.00013598,2]
[323184274,1713790238413,-195.706206,0.00013598,2]
[323184275,1713790238423,-1000.0,0.00013598,2]
[323184277,1713790238433,-10000.0,0.00013598,2]
[323184278,1713790238442,-2513.25233016,0.00013625,2]
[323184279,1713790238451,-535.22778943,0.00013636,2]
[323184280,1713790238461,-2513.25233016,0.00013653,2]
[323184281,1713790238472,-175.21199353,0.0001366,2]
[323184282,1713790238481,-150.0,0.00013669,2]
[323184283,1713790238491,-535.22778943,0.00013675,2]
[323184284,1713790238500,-150.0,0.00013678,2]
[323184285,1713790238509,-2513.25233016,0.0001368,2]
[323184286,1713790238518,-150.0,0.00013683,2]
[323184287,1713790238528,-268.170043,0.00013684,2]
[323184288,1713790238539,-6173.7336321,0.00013684,2]
[323184289,1713790238569,-4395.733603,0.00013684,2]
[323184290,1713790238580,-492.130993,0.00013684,2]
[323184291,1713790238592,-5439.0485355,0.00013684,2]
[323184292,1713790238601,-1038.7651145,0.00013684,2]
[323184293,1713790238642,-203.1023386,0.00013684,2]
[323184294,1713790238653,-5392.5919859,0.00013684,2]
[323184295,1713790238663,-3140.3818262,0.00013686,2]
[323184296,1713790238673,-150.0,0.00013687,2]
[323184297,1713790238683,-150.0,0.00013691,2]
[323184298,1713790238693,-150.0,0.00013693,2]
[323184299,1713790238704,-203.87090159,0.00013695,2]
[323184300,1713790238714,-150.0,0.00013695,2]
[323184301,1713790238726,-976.00014083,0.00013695,2]
[323184344,1713790240156,-150.0,0.00013678,2]
[323184347,1713790240165,-150.0,0.00013679,2]
[323184350,1713790240174,-141.92298796,0.00013695,2]
[323184353,1713790240186,-25637.53739933,0.00013695,2]
[323184358,1713790240206,-621.605979,0.00013696,2]
[323184362,1713790240217,-29053.85235446,0.00013696,2]
[323184365,1713790240226,-16013.66680005,0.00013697,2]
[323184378,1713790240283,-775.77409809,0.00013697,2]
[323184389,1713790240330,-793.78799327,0.00013697,2]
[323184392,1713790240342,-5500.43744089,0.00013697,2]
[323184395,1713790240354,-1000.07439358,0.00013697,2]
[323184410,1713790240419,-370.69399999,0.00013697,2]
[323184437,1713790240619,-2258.12544579,0.00013697,2]
[323184439,1713790240631,-1120.32376913,0.00013697,2]
[323184448,1713790240689,-672.30246172,0.00013697,2]
[323184451,1713790240702,-670.32803477,0.00013697,2]
[323184454,1713790240730,-495.56476405,0.00013697,2]
[323184457,1713790240742,-1000.0,0.00013697,2]
[323184537,1713790243272,-528.12884425,0.00013598,2]
[323184538,1713790243285,-738.78598,0.00013598,2]
[323184539,1713790243360,-1615.12366083,0.00013598,2]
[323184541,1713790243736,-4381.476,0.00013598,2]
[323184560,1713790246260,-1359.02388041,0.00013598,2]
[323184565,1713790246360,-1377.46163451,0.00013598,2]
[323184566,1713790246370,-265.46941739,0.00013697,2]
[323184567,1713790246480,-9585.44294101,0.00013697,2]
[323184579,1713790605743,774.18,0.0001074,2]
[323184580,1713790612069,6500.0,0.00010739,2]
[323184581,1713790637198,707.03,0.00015,10]
[323184587,1713790732576,-523.93217542,0.00012559,2]
[323184588,1713790732598,-194.43310163,0.0001256,2]
[323184589,1713790732622,-185.6,0.0001266,2]
[323184590,1713790732643,-7340.64841283,0.00012699,2]
[323184591,1713790732665,-2721.2,0.000127,2]
[323184592,1713790732684,-250.0,0.00012704,2]
[323184593,1713790732705,-164.24,0.0001279,2]
[323184598,1713790761485,155.0,0.00012999,2]
[323184600,1713790796485,595.0,0.00012667,2]
[323184603,1713791087419,747.62,0.00010725,2]
[323184608,1713791317986,-3388.31808236,0.00012644,2]
[323184609,1713791318011,-250.0,0.00012645,2]
[323184610,1713791318035,-1813.8,0.00012656,2]
[323184611,1713791318059,-1000.0,0.00012662,2]
[323184612,1713791318088,-20061.66894096,0.00012667,2]
[323184630,1713791432328,-164.0,0.00012667,2]
[323184631,1713791432337,-901.95942586,0.00012668,2]
[323184632,1713791432377,-306.90057414,0.00012668,2]
[323184633,1713791432387,-59.01942586,0.00012673,2]
[323184634,1713791432398,-528.325408,0.00012673,2]
[323184635,1713791432433,-526.05516614,0.00012673,2]
[323184636,1713791432443,-200.0,0.00012677,2]
[323184637,1713791432452,-747.62,0.00012989,2]
[323184638,1713791432462,-750.0,0.00013,2]
[323184639,1713791432474,-150.0,0.00013185,2]
[323184640,1713791432483,-7301.82483228,0.00013186,2]
[323184641,1713791432511,-1077.34339013,0.00013186,2]
[323184642,1713791432547,-456.76620795,0.00013186,2]
[323184643,1713791432559,-575.47273153,0.00013186,2]
[323184668,1713791438261,-20106.77129084,0.00013186,2]
[323184669,1713791438272,-639.24,0.00013186,2]
[323184670,1713791438460,-10.98749883,0.00013186,2]
[323184671,1713791438473,-670.29286965,0.00013186,2]
[323184672,1713791438485,-8951.97828916,0.00013186,2]
[323184673,1713791438497,-35658.97567268,0.00013186,2]
[323184674,1713791438579,-630.15,0.00013186,2]
[323184676,1713791438605,-775.44461026,0.00013186,2]
[323184678,1713791438664,-11872.78669364,0.00013186,2]
[323184679,1713791438676,-11702.39371242,0.00013186,2]
[323184680,1713791438686,-14080.72982661,0.00013187,2]
[323184681,1713791438695,-443.0,0.00013342,2]
[323184682,1713791438710,-318.269,0.00013342,2]
[323184683,1713791438721,-993.64900384,0.00013342,2]
[323184686,1713791440507,-1532.47099616,0.00013342,2]
[323184687,1713791440516,-1000.0,0.00013587,2]
[323184688,1713791440525,-500.0,0.00013587,2]
[323184689,1713791440535,-334.51736842,0.00013597,2]
[323184690,1713791440544,-195.70620599,0.00013597,2]
[323184691,1713791440553,-180.46668736,0.00013598,2]
[323184692,1713791440562,-171.30830439,0.00013598,2]
[323184693,1713791440606,-1124.45999997,0.00013598,2]
[323184694,1713791440664,-641.91562167,0.00013598,2]
[323184695,1713791440673,-10000.0,0.00013598,2]
[323184696,1713791440683,-1937.68392602,0.00013625,2]
[323184697,1713791440692,-334.51736839,0.00013636,2]
[323184698,1713791440701,-1937.68392602,0.00013653,2]
[323184699,1713791440712,-877.56509376,0.00013663,2]
[323184700,1713791440723,-334.51736839,0.00013675,2]
[323184701,1713791440732,-1937.68392602,0.0001368,2]
[323184702,1713791440741,-150.0,0.00013682,2]
[323184703,1713791440750,-8160.83660636,0.00013683,2]
[323184704,1713791440760,-6584.4999555,0.00013684,2]
[323184705,1713791440768,-1737.6692446,0.00013684,2]
[323184706,1713791440777,-687.1632172,0.00013684,2]
[323184707,1713791440786,-7979.8340716,0.00013685,2]
[323184708,1713791440795,-150.0,0.00013686,2]
[323184709,1713791440804,-150.0,0.00013688,2]
[323184710,1713791440813,-150.0,0.00013689,2]
[323184711,1713791440822,-150.0,0.00013693,2]
[323184712,1713791440831,-150.0,0.00013694,2]
[323184713,1713791440841,-192.6832454,0.00013695,2]
[323184714,1713791440850,-781.07343554,0.00013695,2]
[323184715,1713791440859,-208.1761724,0.00013695,2]
[323184716,1713791440868,-158.8652616,0.00013695,2]
[323184717,1713791440877,-3241.21353386,0.00013695,2]
[323184718,1713791440887,-3083.71213711,0.00013695,2]
[323184719,1713791440898,-155.0,0.00013695,2]
[323184720,1713791440907,-324.94135592,0.00013695,2]
[323184721,1713791440916,-155.0,0.00013695,2]
[323184722,1713791440926,-205.13856683,0.00013695,2]
[323184723,1713791440935,-157.19520769,0.00013695,2]
[323184724,1713791440945,-1393.58447337,0.00013695,2]
[323184725,1713791440955,-179.06357164,0.00013695,2]
[323184726,1713791440964,-266.37511234,0.00013695,2]
[323184727,1713791440975,-969.73020948,0.00013695,2]
[323184728,1713791440984,-839.50931999,0.00013695,2]
[323184729,1713791440992,-155.18502204,0.00013695,2]
[323184730,1713791441002,-155.0,0.00013695,2]
[323184731,1713791441011,-191.58898328,0.00013695,2]
[323184732,1713791441021,-161.45924312,0.00013696,2]
[323184734,1713791441030,-155.0,0.00013696,2]
[323184736,1713791441039,-1243.21195799,0.00013696,2]
[323184737,1713791441049,-13512.35528704,0.00013697,2]
[323184738,1713791441062,-372135.62193653,0.00013697,2]
[323184739,1713791441071,-3314.69590331,0.00013697,2]
[323184740,1713791441081,-150.0,0.00013697,2]
[323184741,1713791441090,-850.48767,0.00013697,2]
[323184742,1713791441099,-500.0,0.00013698,2]
[323184743,1713791441108,-500.0,0.00013698,2]
[323184744,1713791441118,-500.0,0.00013698,2]
[323184745,1713791441127,-500.0,0.00013698,2]
[323184746,1713791441137,-269.30769,0.00013698,2]
[323184747,1713791441146,-500.0,0.00013698,2]
[323184748,1713791441156,-500.0,0.00013698,2]
[323184749,1713791441165,-500.0,0.00013698,2]
[323184750,1713791441174,-500.0,0.00013698,2]
[323184751,1713791441183,-500.0,0.00013698,2]
[323184752,1713791441192,-500.0,0.00013698,2]
[323184753,1713791441202,-500.0,0.00013698,2]
[323184754,1713791441211,-500.0,0.00013698,2]
[323184755,1713791441220,-479.44568296,0.00013698,2]
[323184756,1713791441232,-500.0,0.00013698,2]
[323184757,1713791441241,-556.86039964,0.00013698,2]
[323184758,1713791441250,-500.0,0.00013698,2]
[323184759,1713791441259,-500.0,0.00013698,2]
[323184760,1713791441268,-1211.7,0.00013698,2]
[323184761,1713791441277,-500.0,0.00013698,2]
[323184762,1713791441286,-512.28,0.00013698,2]
[323184763,1713791441295,-500.0,0.00013698,2]
[323184764,1713791441304,-500.0,0.00013698,2]
[323184765,1713791441313,-500.0,0.00013698,2]
[323184766,1713791441323,-550.48,0.00013698,2]
[323184767,1713791441332,-883.55,0.00013698,2]
[323184768,1713791441341,-500.0,0.00013698,2]
[323184769,1713791441351,-500.0,0.00013698,2]
[323184770,1713791441360,-500.0,0.00013698,2]
[323184771,1713791441369,-513.75,0.00013698,2]
[323184772,1713791441378,-500.0,0.00013698,2]
[323184773,1713791441387,-500.0,0.00013698,2]
[323184774,1713791441396,-505.31,0.00013698,2]
[323184775,1713791441405,-511.27,0.00013698,2]
[323184776,1713791441414,-500.0,0.00013698,2]
[323184777,1713791441423,-500.0,0.00013698,2]
[323184778,1713791441432,-588.4,0.00013698,2]
[323184779,1713791441442,-720.39,0.00013698,2]
[323184780,1713791441450,-500.0,0.00013698,2]
[323184781,1713791441460,-500.0,0.00013698,2]
[323184782,1713791441469,-500.0,0.00013698,2]
[323184783,1713791441479,-500.0,0.00013698,2]
[323184784,1713791441488,-396.76600704,0.00013698,2]
[323184785,1713791441497,-500.0,0.00013698,2]
[323184786,1713791441507,-937.04,0.00013698,2]
[323184787,1713791441518,-500.0,0.00013698,2]
[323184788,1713791441527,-500.0,0.00013698,2]
[323184789,1713791441540,-910.29,0.00013698,2]
[323184790,1713791441551,-677.53,0.00013698,2]
[323184791,1713791441561,-500.0,0.00013698,2]
[323184792,1713791441572,-500.0,0.00013698,2]
[323184793,1713791441581,-500.0,0.00013698,2]
[323184794,1713791441592,-551.27,0.00013698,2]
[323184795,1713791441601,-500.0,0.00013698,2]
[323184796,1713791441612,-500.0,0.00013698,2]
[323184797,1713791441623,-536.76,0.00013698,2]
[323184798,1713791441633,-603.30226857,0.00013698,2]
[323184799,1713791441642,-651.7,0.00013698,2]
[323184800,1713791441651,-500.0,0.00013698,2]
[323184801,1713791441661,-500.0,0.00013698,2]
[323184802,1713791441671,-513.64,0.00013698,2]
[323184803,1713791441680,-500.0,0.00013698,2]
[323184804,1713791441690,-500.0,0.00013698,2]
[323184805,1713791441699,-559.57,0.00013698,2]
[323184806,1713791441709,-500.0,0.00013698,2]
[323184807,1713791441722,-685.03,0.00013698,2]
[323184808,1713791441734,-500.0,0.00013698,2]
[323184809,1713791441744,-500.0,0.00013698,2]
[323184810,1713791441753,-778.88,0.00013698,2]
[323184811,1713791441763,-500.0,0.00013698,2]
[323184812,1713791441772,-500.0,0.00013698,2]
[323184813,1713791441781,-500.0,0.00013698,2]
[323184814,1713791441791,-811.47,0.00013698,2]
[323184815,1713791441801,-500.0,0.00013698,2]
[323184816,1713791441810,-500.0,0.00013698,2]
[323184817,1713791441819,-500.0,0.00013698,2]
[323184818,1713791441829,-500.0,0.00013698,2]
[323184819,1713791441838,-500.0,0.00013698,2]
[323184820,1713791441847,-500.0,0.00013698,2]
[323184821,1713791441857,-500.0,0.00013698,2]
[323184822,1713791441866,-500.0,0.00013698,2]
[323184823,1713791441875,-500.0,0.00013698,2]
[323184824,1713791441884,-500.0,0.00013698,2]
[323184825,1713791441893,-500.0,0.00013698,2]
[323184826,1713791441902,-580.87,0.00013698,2]
[323184827,1713791441911,-500.0,0.00013698,2]
[323184828,1713791441919,-500.0,0.00013698,2]
[323184829,1713791441929,-500.0,0.00013698,2]
[323184830,1713791441938,-500.0,0.00013698,2]
[323184831,1713791441947,-500.0,0.00013698,2]
[323184832,1713791441957,-500.0,0.00013698,2]
[323184833,1713791441967,-500.0,0.00013698,2]
[323184834,1713791441978,-500.0,0.00013698,2]
[323184835,1713791441987,-500.0,0.00013698,2]
[323184836,1713791441996,-1000.0,0.00013698,5]
[323184837,1713791442006,-320.24665776,0.00013698,5]
[323184838,1713791442015,-500.0,0.00013698,2]
[323184839,1713791442024,-500.0,0.00013698,2]
[323184840,1713791442033,-500.0,0.00013698,2]
[323184841,1713791442042,-500.0,0.00013698,2]
[323184842,1713791442051,-500.0,0.00013698,2]
[323184843,1713791442061,-500.0,0.00013698,2]
[323184844,1713791442070,-1271.06,0.00013698,2]
[323184845,1713791442079,-500.0,0.00013698,2]
[323184846,1713791442088,-500.0,0.00013698,2]
[323184847,1713791442098,-500.0,0.00013698,2]
[323184848,1713791442107,-974.8,0.00013698,2]
[323184849,1713791442116,-500.0,0.00013698,2]
[323184850,1713791442125,-500.0,0.00013698,2]
[323184851,1713791442135,-558.19,0.00013698,2]
[323184852,1713791442144,-523.47071016,0.00013698,2]
[323184853,1713791442153,-500.0,0.00013698,2]
[323184854,1713791442163,-500.0,0.00013698,2]
[323184855,1713791442172,-954.8,0.00013698,2]
[323184856,1713791442181,-519.11,0.00013698,2]
[323184857,1713791442190,-740.44,0.00013698,2]
[323184858,1713791442199,-500.0,0.00013698,2]
[323184859,1713791442209,-500.0,0.00013698,2]
[323184860,1713791442218,-500.0,0.00013698,2]
[323184861,1713791442227,-500.0,0.00013698,2]
[323184862,1713791442237,-645.64,0.00013698,2]
[323184863,1713791442246,-500.0,0.00013698,2]
[323184864,1713791442255,-500.0,0.00013698,2]
[323184865,1713791442265,-563.13,0.00013698,2]
[323184866,1713791442275,-500.0,0.00013698,2]
[323184867,1713791442284,-500.0,0.00013698,2]
[323184868,1713791442293,-500.0,0.00013698,2]
[323184869,1713791442302,-500.0,0.00013698,2]
[323184870,1713791442312,-339.76484344,0.00013698,2]
[323184871,1713791442321,-500.0,0.00013698,2]
[323184872,1713791442331,-500.0,0.00013698,2]
[323184873,1713791442340,-500.0,0.00013698,2]
[323184874,1713791442349,-500.0,0.00013698,2]
[323184875,1713791442358,-500.0,0.00013698,2]
[323184876,1713791442368,-500.0,0.00013698,2]
[323184877,1713791442377,-500.0,0.00013698,2]
[323184878,1713791442387,-500.0,0.00013698,2]
[323184879,1713791442396,-500.0,0.00013698,2]
[323184880,1713791442406,-500.81,0.00013698,2]
[323184881,1713791442415,-1214.75,0.00013698,2]
[323184882,1713791442424,-500.0,0.00013698,2]
[323184883,1713791442433,-549.02,0.00013698,2]
[323184884,1713791442443,-500.63,0.00013698,2]
[323184885,1713791442452,-500.0,0.00013698,2]
[323184886,1713791442462,-500.0,0.00013698,2]
[323184887,1713791442471,-612.8,0.00013698,2]
[323184888,1713791442481,-500.0,0.00013698,2]
[323184889,1713791442491,-541.36,0.00013698,2]
[323184890,1713791442500,-500.0,0.00013698,2]
[323184891,1713791442509,-500.0,0.00013698,2]
[323184892,1713791442519,-578.82,0.00013698,2]
[323184893,1713791442528,-500.0,0.00013698,2]
[323184894,1713791442538,-501.01,0.00013698,2]
[323184895,1713791442547,-500.0,0.00013698,2]
[323184896,1713791442557,-500.0,0.00013698,2]
[323184897,1713791442566,-500.0,0.00013698,2]
[323184898,1713791442575,-573.67,0.00013698,2]
[323184899,1713791442585,-500.0,0.00013698,2]
[323184900,1713791442594,-500.0,0.00013698,2]
[323184901,1713791442604,-623.05,0.00013698,2]
[323184902,1713791442613,-1152.2,0.00013698,2]
[323184903,1713791442623,-500.0,0.00013698,2]
[323184904,1713791442632,-500.0,0.00013698,2]
[323184905,1713791442641,-724.84,0.00013698,2]
[323184906,1713791442650,-500.0,0.00013698,2]
[323184907,1713791442660,-500.0,0.00013698,2]
[323184908,1713791442669,-500.0,0.00013698,2]
[323184909,1713791442678,-500.0,0.00013698,2]
[323184910,1713791442687,-500.0,0.00013698,2]
[323184911,1713791442696,-500.0,0.00013698,2]
[323184912,1713791442710,-602.54945645,0.00013698,2]
[323184913,1713791442719,-500.0,0.00013698,2]
[323184914,1713791442729,-500.0,0.00013698,2]
[323184915,1713791442739,-500.0,0.00013698,2]
[323184916,1713791442749,-500.0,0.00013698,2]
[323184917,1713791442759,-500.0,0.00013698,2]
[323184918,1713791442768,-500.0,0.00013698,2]
[323184919,1713791442777,-691.32,0.00013698,2]
[323184920,1713791442787,-500.0,0.00013698,2]
[323184921,1713791442799,-568.15169484,0.00013698,2]
[323184922,1713791442808,-500.0,0.00013698,2]
[323184923,1713791442818,-500.0,0.00013698,2]
[323184924,1713791442828,-571.72054215,0.00013698,2]
[323184925,1713791442838,-959.23,0.00013698,2]
[323184926,1713791442849,-500.0,0.00013698,2]
[323184927,1713791442859,-500.0,0.00013698,2]
[323184928,1713791442868,-516.01,0.00013698,2]
[323184929,1713791442877,-500.0,0.00013698,2]
[323184930,1713791442888,-500.0,0.00013698,2]
[323184931,1713791442897,-628.54,0.00013698,2]
[323184932,1713791442908,-500.0,0.00013698,2]
[323184933,1713791442918,-477.78194022,0.00013698,2]
[323184934,1713791442928,-500.0,0.00013698,2]
[323184935,1713791442938,-500.0,0.00013698,2]
[323184936,1713791442947,-1128.69,0.00013698,2]
[323184937,1713791442957,-500.0,0.00013698,2]
[323184938,1713791442966,-620.7,0.00013698,2]
[323184939,1713791442978,-500.0,0.00013698,2]
[323184941,1713791442988,-500.0,0.00013698,2]
[323184943,1713791442997,-512.5007913,0.00013698,2]
[323184944,1713791443007,-517.18,0.00013698,2]
[323184945,1713791443016,-500.0,0.00013698,2]
[323184946,1713791443026,-2092.39,0.00013698,2]
[323184947,1713791443035,-500.0,0.00013698,2]